Cogmind - Beta 16 @@@ ROGUE MODE // 2025.11.17 @ 10:56:05 // Winter2019/RPGLIKE Player: Jaegerpls Result: Destroyed by P-70 Sage with High-powered Shock Rifle Performance ------------- Evolutions (5) 2500 Regions Visited (6) 1200 Robots Destroyed (67) 335 Value Destroyed (1610) 1610 Prototype IDs (30) 600 Alien Tech Used (0) 0 Bonus (800) 800 TOTAL SCORE: 7045 Bonus ------- Registered with UFD 300 Met Optimus in HQ 500 Cogmind --------- Core Integrity 0/600 Matter 90/300 Energy 93/300 System Corruption 17% Temperature Warm (112) Movement Hovering (52) Location -5/Factory Parts ------- > --- POWER (2) -------- Enhanced Nuclear Core > --- PROPULSION (3) --- Antigrav System Antigrav System Antigrav System > --- UTILITY (5) ------ Improved Sensor Array Improved Signal Interpreter Advanced Terrain Scanner Makeshift Hacking Suite A0-MCA's Component Scanner > --- WEAPON (3) ------- High-powered Shock Rifle High-powered Shock Rifle Remote Datajack (fused) > --- INVENTORY (2) ---- Surveybot 17 Chip Point Defense System Peak State ------------ > --- POWER ------------ Enhanced Nuclear Core > --- PROPULSION ------- Antigrav System Antigrav System Antigrav System > --- UTILITY ---------- Improved Sensor Array Improved Signal Interpreter Advanced Terrain Scanner Makeshift Hacking Suite A0-MCA's Component Scanner > --- WEAPON ----------- High-powered Shock Rifle High-powered Shock Rifle Remote Datajack > --- INVENTORY -------- Surveybot 17 Chip Point Defense System [Rating: 62] Favorites ----------- Power Light Nuclear Core Engine Ion Engine Power Core Light Nuclear Core Propulsion Hover Unit Wheel Wheel Hover Unit Hover Unit Flight Unit Flight Unit Utility Improved Targeting Computer Device Improved Terrain Scanner Processor Improved Targeting Computer Hackware Makeshift Hacking Suite Weapon Heavy EM Pulse Gun Energy Gun Heavy EM Pulse Gun Energy Cannon Subdweller Beam Cannon Launcher Subdweller Shrapnel Launcher Special Weapon Remote Datajack Build | -11 -10 -10 -7 -5 -5 -5 ------- Run | Yrd Mat Sub Scr Fac Was Fac Slots Evolved 9 | 4 1 1 1 2 . . Power 1 | . . . . 1 . . Propulsion 2 | 1 . 1 . . . . Utility 4 | 2 1 . 1 . . . Weapon 2 | 1 . . . 1 . . Parts Attached 36 | 8 10 5 4 8 . 1 Power 5 | 1 1 1 1 1 . . Engine 2 | 1 1 . . . . . Core 3 | . . 1 1 1 . . Reactor . | . . . . . . . Propulsion 12 | 4 4 1 . 2 . 1 Treads . | . . . . . . . Leg . | . . . . . . . Wheel 4 | 4 . . . . . . Hover 6 | . 2 1 . 2 . 1 Flight 2 | . 2 . . . . . Utility 9 | 1 3 1 2 2 . . Device 3 | 1 . . 1 1 . . Storage . | . . . . . . . Processor 4 | . 2 . 1 1 . . Hackware 2 | . 1 1 . . . . Protection . | . . . . . . . Artifact . | . . . . . . . Weapon 10 | 2 2 2 1 3 . . Energy Gun 7 | 2 2 . 1 2 . . Energy Cannon 1 | . . 1 . . . . Ballistic Gun . | . . . . . . . Ballistic Cannon . | . . . . . . . Launcher 1 | . . 1 . . . . Special Weapon 1 | . . . . 1 . . Impact Weapon . | . . . . . . . Slashing Weapon . | . . . . . . . Piercing Weapon . | . . . . . . . Special Melee Weapon . | . . . . . . . Unidentified Prototypes . | . . . . . . . Parts Lost . | . . . . . . . Power . | . . . . . . . Propulsion . | . . . . . . . Utility . | . . . . . . . Weapon . | . . . . . . . Highest Loss Streak . | . . . . . . . To Critical Strikes . | . . . . . . . Average Backups . | . . . 1 1 2 2 Power . | . . . . . . . Propulsion . | . . . . . . . Utility . | . . . . 1 2 2 Weapon . | . . . . . . . Tool/Special . | . . . . . . . Unused Backups 7 | . 3 . 2 . . 2 Power 1 | . 1 . . . . . Propulsion 1 | . 1 . . . . . Utility 3 | . . . 1 . . 2 Weapon . | . . . . . . . Tool/Special 2 | . 1 . 1 . . . Average Slot Usage (%) 98 | . 93 100 100 92 92 92 Engine 3 | . 11 4 . . . . Core 5 | . . 5 9 7 7 7 Hover 27 | . 17 29 27 23 23 23 Device 10 | . 11 10 9 14 15 15 Processor 19 | . 15 20 25 15 15 15 Hackware 9 | . 10 10 9 7 7 7 Energy Gun 19 | . 23 19 18 15 15 15 Peak Build Rating 62 | 8 17 21 36 57 57 62 Average Rating 24 | 6 13 19 30 50 57 60 On Entrance 28 | . 8 17 21 36 57 57 Avg Prop Armor Cover (%) . | . . . . . . . Naked Turns . | . . . . . . . Heaviest Build 23 | 8 12 17 14 23 23 23 Greatest Support 41 | 37 25 23 23 36 36 41 Greatest Overweight (x) 1 | . 1 . . . . . Average Overweight (x) . | . . . . . . . Largest Inventory Capacity 2 | 1 1 2 2 2 2 2 Average Capacity 1 | . 1 1 2 2 2 2 Most Carried 2 | 1 1 2 2 2 2 2 Average Carried 1 | . . 1 1 1 2 2 Final Capacity 2 | 1 1 2 2 2 2 2 Final Carried 2 | . 1 2 2 2 2 2 Class Distribution -------------------- 75% | Scavenger-Mutant 13% | Scout 10% | Mutant Dominant Class ---------------- Scavenger-Mutant | -10/Materials Scavenger-Mutant | -10/Subcaves Scavenger-Mutant | -7/Scraptown Scout | -5/Factory Scout | -5/Waste Scout | -5/Factory Resources | -11 -10 -10 -7 -5 -5 -5 ----------- Run | Yrd Mat Sub Scr Fac Was Fac Matter Collected 600 | 290 100 210 . . . . Remotely . | . . . . . . . Salvage Created 2699 | 228 800 1324 . 225 . 122 Parts 158 | 17 62 71 . 4 . 4 Haulers Intercepted 5 | . 2 . . 2 . 1 Recyclers Shooed . | . . . . . . . Parts Field Recycled . | . . . . . . . Retrieved Matter . | . . . . . . . Parts Self-Destructed 15 | . . 15 . . . . Prevented 4 | . . 4 . . . . Parts Restored . | . . . . . . . Kills | -11 -10 -10 -7 -5 -5 -5 ------- Run | Yrd Mat Sub Scr Fac Was Fac Combat Hostiles Destroyed 39 | . 17 22 . . . . Guns 25 | . 8 17 . . . . AOE 10 | . 8 2 . . . . Classes Destroyed 14 | 3 6 5 . . . . Worker 4 | 2 2 . . . . . Builder 3 | . 3 . . . . . Tunneler 6 | 5 1 . . . . . Hauler 5 | . 2 . . 2 . 1 Recycler 2 | 1 1 . . . . . Operator 3 | . 2 . . . . 1 Turret 2 | . . 2 . . . . Watcher 3 | . 3 . . . . . Swarmer 10 | . 6 4 . . . . Grunt 11 | . 11 . . . . . Sentry 1 | . . 1 . . . . Artisan 2 | . . 2 . . . . Cobbler 1 | . . 1 . . . . Subdweller 17 | . . 17 . . . . Best Kill Streak 8 | 3 8 3 . 1 . 1 Combat Bots Only 5 | . 5 3 . . . . Max Kills in Single Turn 3 | 1 3 2 . 1 . 1 Gunslinging . | . . . . . . . Exploded 2 | . 2 2 . . . . Melee . | . . . . . . . Uniques/NPCs Destroyed . | . . . . . . . Combat | -11 -10 -10 -7 -5 -5 -5 -------- Run | Yrd Mat Sub Scr Fac Was Fac Hostile Shots Fired 187 | . 37 117 . . . 33 Missed 72 | . 18 49 . . . 5 Hits 115 | . 19 68 . . . 28 Projectile 115 | . 19 68 . . . 28 Critical Strikes 2 | . . 1 . . . 1 Damage Taken 1928 | . 297 1067 . . . 564 Core 1578 | . 244 879 . . . 455 Absorbed by Shields . | . . . . . . . Redirected to Core 1213 | . 173 648 . . . 392 Core Remaining (%) 87 | 100 . . 75 . . . Volleys Fired 294 | 15 55 193 . 6 8 17 Largest 2 | 2 2 2 . 2 2 2 Hottest 120 | 80 90 90 . 120 120 120 Shots Fired 565 | 30 104 376 . 12 13 30 Gun 553 | 30 104 369 . 12 11 27 Cannon 1 | . . 1 . . . . Launcher 6 | . . 6 . . . . Special 5 | . . . . . 2 3 Kinetic 6 | . . 6 . . . . Thermal 1 | . . 1 . . . . Explosive . | . . . . . . . Electromagnetic 553 | 30 104 369 . 12 11 27 Robot Hit Streak 34 | 9 9 34 . 3 4 5 Robot Miss Streak 4 | 2 4 2 . 2 2 3 Penetration Max . | . . . . . . . Secondary Targets 3 | . 1 2 . . . . Max Gunslinging Chain 1 | . 1 1 . . . . Shots Hit Robots 292 | 20 62 178 . 5 8 19 Core Hits 103 | 7 37 51 . 4 2 2 Critical Kills . | . . . . . . . Critical Parts Destroyed . | . . . . . . . Critical Strikes 10 | . 3 6 . . . 1 Corrupt 10 | . 3 6 . . . 1 Melee Attacks . | . . . . . . . Impact . | . . . . . . . Slashing . | . . . . . . . Piercing . | . . . . . . . Sneak Attacks . | . . . . . . . Combat Hostiles . | . . . . . . . Follow-up Attacks . | . . . . . . . Damage Inflicted 4921 | 271 1886 2413 . 120 11 220 Guns 3805 | 271 904 2279 . 120 11 220 Cannons . | . . . . . . . Explosions 1116 | . 982 134 . . . . Melee . | . . . . . . . Ramming . | . . . . . . . Kinetic . | . . . . . . . Thermal 561 | . 427 134 . . . . Explosive 555 | . 555 . . . . . Electromagnetic 3805 | 271 904 2279 . 120 11 220 Impact . | . . . . . . . Slashing . | . . . . . . . Piercing . | . . . . . . . Highest Corruption 17 | . . . . . 14 17 Average Corruption 13 | . . . . . 10 14 Corruption Purged . | . . . . . . . Corruption Blocked . | . . . . . . . Effects 35 | . . . . . 11 24 Message Errors 6 | . . . . . 1 5 Matter Fused 7 | . . . . . 1 6 Heat Flow Errors 6 | . . . . . 2 4 Energy Discharges 6 | . . . . . 1 5 Parts Fused 1 | . . . . . 1 . Data Loss (minor) 4 | . . . . . 2 2 Misdirections 3 | . . . . . 2 1 Weapon Failures 2 | . . . . . 1 1 Overload Shots . | . . . . . . . Overflow Damage 100 | . 100 . . . . . Projectiles . | . . . . . . . Explosions 100 | . 100 . . . . . Melee . | . . . . . . . Knockbacks . | . . . . . . . Impact . | . . . . . . . Kinetic . | . . . . . . . Secondary . | . . . . . . . Self-Inflicted Damage 122 | . 90 32 . . . . Shots 5 | . 3 2 . . . . Rammed . | . . . . . . . Targets Rammed . | . . . . . . . Kicked . | . . . . . . . Crushed . | . . . . . . . Highest Temperature 332 | . 48 11 . 94 332 301 Average Temperature 76 | . 13 11 . 39 114 115 Received Heat Transfer 333 | . 84 249 . . . . Siege Activations . | . . . . . . . Martial Activations . | . . . . . . . Shielding Activations . | . . . . . . . Robots Disrupted 1 | . . 1 . . . . Combat Hostiles 1 | . . 1 . . . . Robots Corrupted 10 | 1 1 7 . . . 1 Combat Hostiles 5 | . 1 4 . . . . Parts Fried 27 | 2 2 20 . 2 . 1 Impact Corruptions . | . . . . . . . Robots Melted . | . . . . . . . Combat Hostiles . | . . . . . . . Parts Melted 1 | . . 1 . . . . Heat Transferred 800 | . 650 150 . . . . Parts Sabotaged . | . . . . . . . Parts Stolen . | . . . . . . . Parts Stripped . | . . . . . . . Power Chain Reactions 12 | . 9 3 . . . . Alert | -11 -10 -10 -7 -5 -5 -5 ------- Run | Yrd Mat Sub Scr Fac Was Fac Maximum Alert Level 1 | . 1 . . . . . Low Security (%) 95 | 100 89 . . 100 100 100 Level 1 4 | . 10 . . . . . Level 2 . | . . . . . . . Level 3 . | . . . . . . . Level 4 . | . . . . . . . Level 5 . | . . . . . . . High Security . | . . . . . . . Max Security . | . . . . . . . Peak Influence 299 | 10 299 . . 15 . 20 Initial 6 | . 6 . . . . . Average 59 | 3 127 . . 1 . 1 Influence Increases 1326 | 40 715 470 . 59 . 42 Destroy 0b10 Robot/C 480 | . 340 140 . . . . Destroy 0b10 Robot/NC 130 | 40 70 . . 10 . 10 Destroy Leader 66 | . 60 . . 4 . 2 Successful Hack 47 | . 32 . . 15 . . Disable Machine 180 | . 120 . . 30 . 30 Destroy Structure 48 | . 48 . . . . . Lose Combat Pursuer 375 | . 45 330 . . . . Influence Decreases 1326 | 30 597 177 421 59 . 42 Entered New Map 487 | . 4 62 421 . . . Time Decay 689 | 30 443 115 . 59 . 42 Purge Threat 150 | . 150 . . . . . Squads Dispatched 11 | . 2 . . 6 . 3 Investigation 4 | . 2 . . 1 . 1 Extermination 2 | . . . . 1 . 1 Reinforcement 5 | . . . . 4 . 1 Assault . | . . . . . . . Garrison . | . . . . . . . Intercept . | . . . . . . . Searches Triggered . | . . . . . . . Construction Impeded . | . . . . . . . Haulers Reinforced 1 | . . . . 1 . . Active Scanning Responses . | . . . . . . . Cargo Convoy Interrupts . | . . . . . . . Stealth | -11 -10 -10 -7 -5 -5 -5 --------- Run | Yrd Mat Sub Scr Fac Was Fac Distress Signals 3 | . 3 . . . . . Communications Jammed . | . . . . . . . Distress Signals . | . . . . . . . Times Spotted 71 | . 24 38 . . 6 3 Peak Tracking Total 6 | . 5 5 . . 6 2 Tactical Retreats 8 | . 3 4 . . 1 . Traps | -11 -10 -10 -7 -5 -5 -5 ------- Run | Yrd Mat Sub Scr Fac Was Fac Traps Triggered 3 | . . 2 . 1 . . Indirectly . | . . . . . . . Trap Hack Attempts . | . . . . . . . Triggered . | . . . . . . . Disarmed . | . . . . . . . Reprogrammed . | . . . . . . . Reused . | . . . . . . . Traps Extracted . | . . . . . . . Installed . | . . . . . . . Triggered . | . . . . . . . Machines | -11 -10 -10 -7 -5 -5 -5 ---------- Run | Yrd Mat Sub Scr Fac Was Fac Machines Disabled 14 | . 8 2 . 2 . 2 Max in Single Turn 3 | . 3 1 . 1 . 1 Machines Repaired . | . . . . . . . Machines Dismantled . | . . . . . . . Machines Sabotaged . | . . . . . . . Overloaded Fab Kills . | . . . . . . . Hacking | -11 -10 -10 -7 -5 -5 -5 --------- Run | Yrd Mat Sub Scr Fac Was Fac Machines Accessed 30 | . 10 4 9 6 . 1 Terminals 11 | . 8 . . 3 . . Fabricators . | . . . . . . . Repair Stations 1 | . . . . 1 . . Recycling Units 4 | . 2 . . 1 . 1 Scanalyzers 1 | . . . . 1 . . Garrison Access . | . . . . . . . Total Hacks 138 | . 32 16 73 16 . 1 Successful 122 | . 24 16 73 8 . 1 Failed 16 | . 8 . . 8 . . Catastrophic 1 | . 1 . . . . . Database Lockouts . | . . . . . . . Manual 40 | . 26 . . 13 . 1 Terminals 37 | . 28 . . 9 . . Fabricators . | . . . . . . . Repair Stations 2 | . . . . 2 . . Recycling Units 7 | . 4 . . 2 . 1 Scanalyzers 3 | . . . . 3 . . Garrison Access . | . . . . . . . Terminal Hacks 100 | . 11 16 73 . . . Record 80 | . . 13 67 . . . Robot Analysis 11 | . 5 . 6 . . . Prototype ID Bank 3 | . 3 . . . . . Open Door 1 | . . 1 . . . . Alert Level 2 | . 2 . . . . . Unreport Threat 1 | . 1 . . . . . Proto ID Catalog 1 | . . 1 . . . . Release Object 1 | . . 1 . . . . Fabricator Hacks . | . . . . . . . Repair Station Hacks . | . . . . . . . Recycling Unit Hacks 2 | . 2 . . . . . Report Inventory 2 | . 2 . . . . . Scanalyzer 3 | . . . . 3 . . Retrieve Study 3 | . . . . 3 . . Garrison Access Hacks . | . . . . . . . Unauthorized Hacks 17 | . 11 . . 5 . 1 Terminals 13 | . 9 . . 4 . . Botnet 3 | . 2 . . 1 . . Operators 1 | . 1 . . . . . Skim 9 | . 6 . . 3 . . Fabricators . | . . . . . . . Repair Stations . | . . . . . . . Recycling Units 4 | . 2 . . 1 . 1 Reject 1 | . 1 . . . . . Recyclers 1 | . 1 . . . . . Fedlink 2 | . . . . 1 . 1 Scanalyzers . | . . . . . . . Garrison Access . | . . . . . . . Data Cores Recovered 2 | . 2 . . . . . Used 1 | . 1 . . . . . Hacking Detections 13 | . 8 . . 5 . . Full Trace Events . | . . . . . . . Feedback Events . | . . . . . . . Feedback Blocked . | . . . . . . . Robot Schematics Acquired . | . . . . . . . Robots Built . | . . . . . . . Authchips . | . . . . . . . Time . | . . . . . . . Total Robot Build Rating . | . . . . . . . Part Schematics Acquired . | . . . . . . . Parts Built . | . . . . . . . Authchips . | . . . . . . . Time . | . . . . . . . Total Part Build Rating . | . . . . . . . Part Studies Acquired 3 | . . . . 3 . . Parts Repaired . | . . . . . . . Time . | . . . . . . . Parts Recycled . | . . . . . . . Recycled Matter . | . . . . . . . Retrieved Matter . | . . . . . . . Retrieved Components . | . . . . . . . Parts Scanalyzed . | . . . . . . . Part Schematics Acquired . | . . . . . . . Parts Damaged . | . . . . . . . Bothacking | -11 -10 -10 -7 -5 -5 -5 ------------ Run | Yrd Mat Sub Scr Fac Was Fac Used RIF Installer . | . . . . . . . Robots Hacked 1 | . . . . . . 1 Non-combat . | . . . . . . . Combat 1 | . . . . . . 1 Robot Hacks Applied 1 | . . . . . . 1 parse_system 1 | . . . . . . 1 Relay Couplers Released . | . . . . . . . Fabnet Peak Effective % . | . . . . . . . Robots Rewired . | . . . . . . . Allies Hacked . | . . . . . . . Hacks Repelled . | . . . . . . . Allies | -11 -10 -10 -7 -5 -5 -5 -------- Run | Yrd Mat Sub Scr Fac Was Fac Total Allies . | . . . . . . . Largest Group . | . . . . . . . Highest-Rated Group . | . . . . . . . Highest-Rated Ally . | . . . . . . . Total Orders . | . . . . . . . Ally Attacks . | . . . . . . . Total Damage . | . . . . . . . Kills . | . . . . . . . Allies Corrupted . | . . . . . . . Allies Melted . | . . . . . . . Intel | -11 -10 -10 -7 -5 -5 -5 ------- Run | Yrd Mat Sub Scr Fac Was Fac Active Infowar (turns) 10350 | 58 1320 6354 1199 688 214 517 Sensors 1379 | . . . . 648 214 517 Terrain 10350 | 58 1320 6354 1199 688 214 517 Robot Analysis Total 10 | . 4 . 6 . . . Derelict Logs Recovered 1 | . . 1 . . . . Drone Launches . | . . . . . . . Drone Recoveries . | . . . . . . . Exploration | -11 -10 -10 -7 -5 -5 -5 ------------- Run | Yrd Mat Sub Scr Fac Was Fac Turns Passed 10407 | 115 1320 6354 1199 688 214 517 Spaces Moved 7098 | 56 920 3682 1387 516 234 303 Core 2 | 2 . . . . . . Treads . | . . . . . . . Legs . | . . . . . . . Wheels 95 | 54 41 . . . . . Hover 6871 | . 749 3682 1387 516 234 303 Flight 130 | . 130 . . . . . Fastest Speed 37 | 50 37 52 52 52 52 52 Average Speed 52 | 88 55 52 52 52 52 52 Slowest Speed 120 | 100 120 56 52 52 52 52 Overloaded Moves . | . . . . . . . Propulsion Burnouts . | . . . . . . . Robots Hopped . | . . . . . . . Potential Cave-ins . | . . . . . . . Cave-ins Triggered . | . . . . . . . Exploration Rate (%) 58 | 4 97 97 89 18 96 9 Regions Visited 6 Branch Regions 2 Pre-discovered Areas 9 | . 1 2 5 . . 1 Known Exits Taken . | . . . . . . . Unknown Exits Taken 4 | 1 1 1 1 . . . Scrap Searched 17 | . . 13 4 . . . Spaces Dug 15 | . . 15 . . . . Terrain Destroyed 161 | . 43 118 . . . . Melee . | . . . . . . . Projectile . | . . . . . . . AOE 161 | . 43 118 . . . . Terrain Rammed . | . . . . . . . Walls Destroyed . | . . . . . . . Machines Disabled . | . . . . . . . Actions | -11 -10 -10 -7 -5 -5 -5 --------- Run | Yrd Mat Sub Scr Fac Was Fac Total 13191 | 87 1625 7744 1864 926 312 633 Wait 5649 | 6 604 3805 466 387 71 310 Move 7093 | 55 919 3681 1386 516 233 303 Hop . | . . . . . . . Pick Up 18 | . 6 6 4 2 . . Fast Attach 16 | 6 6 1 1 2 . . Attach 6 | . 2 2 . 2 . . Detach 5 | . 1 2 . 2 . . Swap 19 | 3 4 4 3 4 . 1 Drop 29 | 2 11 6 4 5 . 1 Fire 294 | 15 55 193 . 6 8 17 Melee . | . . . . . . . Ram 1 | . . . . . . 1 Kick . | . . . . . . . Crush . | . . . . . . . Escape Stasis . | . . . . . . . Rewire . | . . . . . . . Trap . | . . . . . . . Miscellaneous 61 | . 17 44 . . . . Route ------- -11/Scrapyard -10/Materials (discovered 5 exits: *Mat x3 / *Min / *Sub) -10/Subcaves (discovered 4 exits: *Mat x2 / [*Rec] / *Scr) -7/Scraptown (discovered 2 exits: *Fac x2) -5/Factory (discovered 3 exits: *Fac x2 / *Upp) -5/Waste -5/Factory (discovered 1 exit: *Fac) History --------- Turn | Location | Event 4 | -11/Scrapyard | Upgraded with Propulsion slot (x1) 4 | -11/Scrapyard | Upgraded with Utility slot (x2) 4 | -11/Scrapyard | Upgraded with Weapon slot (x1) 7 | -11/Scrapyard | Discovered new exit (range 16) 116 | -11/Scrapyard | Entered Materials 262 | -10/Materials | Discovered new exit (range 12) 310 | -10/Materials | Build established: Mutant 487 | -10/Materials | Identified exit to Materials 526 | -10/Materials | Discovered new exit (range 15) 558 | -10/Materials | Identified exit to Mines 618 | -10/Materials | Learned location of 2 exits from Materials 658 | -10/Materials | Reached level 2 669 | -10/Materials | Learned location of 2 exits from Mines 671 | -10/Materials | Upgraded with Utility slot (x1) 712 | -10/Materials | Learned 2 Mines zone layouts 744 | -10/Materials | Learned location of 2 exits from Mines 766 | -10/Materials | Learned location of 1 exit from Storage 798 | -10/Materials | Loaded intel: 12 trap records 825 | -10/Materials | Build established: Scavenger-Mutant 841 | -10/Materials | Learned 2 Mines zone layouts 894 | -10/Materials | Learned location of Mines (-10) 1436 | -10/Materials | Entered Subcaves 1437 | -10/Subcaves | Approached by a straggling Scientist 1438 | -10/Subcaves | Reached level 3 1438 | -10/Subcaves | Upgraded with Propulsion slot (x1) 2778 | -10/Subcaves | Released subatomizers from SUBCON Basin 2905 | -10/Subcaves | Discovered new exit (range 14) 3166 | -10/Subcaves | Identified exit to Materials 3509 | -10/Subcaves | Discovered exit to Materials (range 10) 3653 | -10/Subcaves | A swath of the cavern ceiling suddenly collapsed 3807 | -10/Subcaves | Visited 4L-MR0's lab 3855 | -10/Subcaves | A swath of the cavern ceiling suddenly collapsed 3868 | -10/Subcaves | Visited Clippyterm 3869 | -10/Subcaves | Shifting Twisted Machinery released Battle Rifle 3870 | -10/Subcaves | Learned location of Section 7 (-2) 3870 | -10/Subcaves | Learned Research machine intel 3980 | -10/Subcaves | Shifting Twisted Machinery released Battle Cannon 4320 | -10/Subcaves | Learned location of Zion (-7) 4320 | -10/Subcaves | Met a Zionite searching for "candidates" 5228 | -10/Subcaves | Shifting Twisted Machinery released Mak. Hacking Suite 5407 | -10/Subcaves | Disturbed a concealed Subdweller 5575 | -10/Subcaves | Shifting Twisted Machinery released Sub. Laser 5690 | -10/Subcaves | Core integrity fell below 50% 5806 | -10/Subcaves | Shifting Twisted Machinery released Sub. Shrapnel Launcher 6317 | -10/Subcaves | Shifting Twisted Machinery released Flamer 6538 | -10/Subcaves | Ambushed by angry Subdweller bent on revenge 7790 | -10/Subcaves | Entered Scraptown 7792 | -7/Scraptown | Reached level 4 7965 | -7/Scraptown | Visited UFD Registry 7965 | -7/Scraptown | Registered with UFD as "Cargospreader" 8009 | -7/Scraptown | Delivered Scrap Shield to a Scientist 8072 | -7/Scraptown | Visited A0-MCA Data Center 8075 | -7/Scraptown | Given a B+ rating by A0-MCA 8080 | -7/Scraptown | Upgraded with Utility slot (x1) 8080 | -7/Scraptown | Found A0-MCA's Component Scanner 8098 | -7/Scraptown | Visited Scrapoid Pod Storage 8113 | -7/Scraptown | Visited Observation Area 8158 | -7/Scraptown | Visited Research Penetration Think Tank 8239 | -7/Scraptown | Visited Derelict Rescue Squad 8252 | -7/Scraptown | Visited Analyses Database 8261 | -7/Scraptown | Visited Cartography Club 8325 | -7/Scraptown | Found Surveybot 17 Chip 8330 | -7/Scraptown | Discovered new exit (range 10) 8411 | -7/Scraptown | Learned location of Recycling (-7) 8411 | -7/Scraptown | Learned location of Proximity Caves (-6) 8411 | -7/Scraptown | Learned location of Extension (-4) 8411 | -7/Scraptown | Learned location of Quarantine (-2) 8411 | -7/Scraptown | Learned 16 Materials zone layouts 8411 | -7/Scraptown | Learned 16 Research zone layouts 8411 | -7/Scraptown | Learned 8 Factory zone layouts 8411 | -7/Scraptown | Learned 8 Lower Caves zone layouts 8411 | -7/Scraptown | Learned 16 Upper Caves zone layouts 8411 | -7/Scraptown | Learned 24 Proximity Caves zone layouts 8411 | -7/Scraptown | Learned Factory emergency access door positions 8411 | -7/Scraptown | Learned location of 1 exit from Upper Caves 8411 | -7/Scraptown | Learned location of 2 exits from Proximity Caves 8444 | -7/Scraptown | Visited Junk Repository 8523 | -7/Scraptown | Visited Abandonware Association 8533 | -7/Scraptown | Learned abandonware demo "MELTYB.EXE" 8546 | -7/Scraptown | Visited Modified Component R&D 8586 | -7/Scraptown | Visited Cyclists 8594 | -7/Scraptown | Entered Cyclist Reading Room 8607 | -7/Scraptown | Visited IN-MT5's Study 8618 | -7/Scraptown | Visited Fellowship of the Rings 8632 | -7/Scraptown | Visited Red Mages 8644 | -7/Scraptown | Found Relay Coupler [Proto] 8659 | -7/Scraptown | Visited SPCMW 8671 | -7/Scraptown | Visited Comm Corps 8693 | -7/Scraptown | Visited Junk Repository 8789 | -7/Scraptown | Build established: Mutant 8822 | -7/Scraptown | Discovered new exit (range 15) 8957 | -7/Scraptown | Met Optimus 8957 | -7/Scraptown | Accepted into 0bPrime 8989 | -7/Scraptown | Entered Factory 8991 | -5/Factory | Reached level 5 9004 | -5/Factory | Upgraded with Power slot (x1) 9004 | -5/Factory | Upgraded with Weapon slot (x1) 9072 | -5/Factory | Discovered new exit (range 20) 9082 | -5/Factory | Identified exit to Factory 9332 | -5/Factory | Build established: Scout 9504 | -5/Factory | Discovered new exit (range 19) 9591 | -5/Factory | Discovered exit to Factory (range 20) 9623 | -5/Factory | Loaded intel: 8 recycling unit locations 9644 | -5/Factory | Identified exit to Upper Caves 9677 | -5/Factory | Sucked down chute 9677 | -5/Factory | Entered Waste 9692 | -5/Waste | EMP discharged 9787 | -5/Waste | Spotted C-40 Crusher 9791 | -5/Waste | Spotted C-40 Crusher 9792 | -5/Waste | EMP discharged 9792 | -5/Waste | System corruption reached 10% 9843 | -5/Waste | Spotted C-40 Crusher 9845 | -5/Waste | Spotted C-40 Crusher 9846 | -5/Waste | Spotted C-40 Crusher 9859 | -5/Waste | Spotted C-40 Crusher 9885 | -5/Waste | Discovered new exit (range 10) 9890 | -5/Waste | Identified exit to Factory 9891 | -5/Waste | Entered Factory 10105 | -5/Factory | Loaded intel: 8 recycling unit locations 10105 | -5/Factory | Learned location of Protoforge (-2) 10177 | -5/Factory | Discovered exit to Factory (range 19) 10379 | -5/Factory | Core integrity fell below 50% 10400 | -5/Factory | Core integrity fell below 20% 10408 | -5/Factory | Destroyed by P-70 Sage with High-powered Shock Rifle Last Messages --------------- 10231_ :W7C>HMYXN2OL/&MF:F9UM8#GDKPEL#IED2L1 10248_ System corrupted: Energy discharge (-117). 10273_ System corrupted: Matter fused (-6). 10282_ ALERT: Security rotation in progress. 10290_ IXNK=:GUO>RO3PBY1PPKLK6U7C 10315_ System corrupted: Heat flow error (+160). 10341_ System corrupted: Component data lost. 10360_ System corrupted: Energy discharge (-99). 10365_ Assembly Bed disabled. 10365_ Door malfunctions. 10376_ P-70 Sage resets P-70 Sage, system corruption cleaned. 10380_ PGO1 TWO53C4IBYC#QSOZ 10381_ P-70 Sage resets P-70 Sage, system corruption cleaned. 10395_ System corrupted: Energy discharge (-55). 10404_ Jacked P-70 Sage... >>parse_system Reading system data... 10406_ Jacked P-70 Sage... 10406_ Command string: \\L9MN 10406_ No effect. Map ----- +----------------------------------------------------+ | ? ############## #### | | ############## #### | | #### | | #### | | #### | | #### | | #### | | #### | | #### | | #### | | ##### #####/### #### | | ##### ## ## #### | | ##### ## ## #### | | #####+##+## ## #### | | #### ## """ ## #### | | #### ## """ ## T### | | +#### k ## """" + ### | | # ## """" ## #### | | "" # ## """" ## #### | | "" # ## """" ## #### | | "" # ## ## ##### #### | | # ## ## ##### #### | | # ##########+##### p #### | | # ## ## #### | | # ## ## #### | | ? # ## " " " p@ #### | | ?######+#### " " " ##### #### | | ? # =] " " " ##### #### | | ? ? # =%= " " " ##### #### | | ? ? + ==* " " " ##### ###? | | ?? ? # """ " " " #####m###? | | ?? # "R " " " ### ###? | | ?#?#?# # """ " " " ### < #### | | ##??## # "" " " " ### #### | | ? ? + + #### ##### | | ???? # ################# ##### | | ? ? #? ? ################# ##### | | ?? ? +? ##### | | ? ? ##### u #?#?# | | ?? ?###BB !!! "" "" ##### | | ????###?BB ? !!! "F "" ##### | | #?#?#?#?## !!! """"" ####### | | # #?######? ####### | | #? ? ####### | | ? ?####### ######## #### ######? | | #??##?#### #####?## #### ####?## | | ???#####?# #####?## #### ####### | | # ######## ?###?###+#### #### | | ??? #???##?####### + #### | | # ? # """ # #??# | +----------------------------------------------------+ Best States ------------- Heat Dissipation 37 Energy Generation 23 Energy Capacity 300 Matter Stores 300 Matter Capacity 300 Sight Range 16 Robot Scan Range 23 Terrain Scan Range 20 Terrain Scan Density 310 Evasion (%) 62 Targeting Accuracy 12 Offensive Hacking 11 Item Schematics ----------------- None Robot Schematics ------------------ None Fabricated ------------ Nothing Repaired ---------- Nothing Studied --------- Hpw. Shock Rifle | -5/Factory | Hacked Antigrav System | -5/Factory | Hacked Hover Unit | -5/Factory | Hacked Alien Tech Used ----------------- None Achievements -------------- None Challenges ------------ None RPGLIKE | -11 -10 -10 -7 -5 -5 -5 --------- Run | Yrd Mat Sub Scr Fac Was Fac Levels Raised 4 | . 1 1 1 1 . . XP Earned 10190 | 3000 2550 1700 900 1690 200 150 XP Spent 8790 | 2970 1520 1475 1525 1300 . . Upgrades 22 | 10 4 4 2 2 . . Power Slot 1 | . . . . 1 . . Propulsion Slot 2 | 1 . 1 . . . . Utility Slot 4 | 2 1 . 1 . . . Weapon Slot 2 | 1 . . . 1 . . Heat Dissipation 2 | 1 1 . . . . . Energy Generation 1 | . 1 . . . . . Mass Support 1 | 1 . . . . . . Inventory Capacity 2 | 1 . 1 . . . . Sensor Range 4 | . 1 2 1 . . . Terrain Scan Density 3 | 3 . . . . . . Protomatter Created 540 | . 223 317 . . . . Integrity Restored 1117 | . 308 809 . . . . Core 974 | . 244 730 . . . . Parts 143 | . 64 79 . . . . Protomatter Decayed 220 | . 86 134 . . . . Game ------ Seed DispersionVoltaicAmplifier Manual? 0 Play Time 01:16:34 Cumulative 59.6 hours Start 2025.11.17 @ 09:34:42 End 2025.11.17 @ 10:56:05 Sessions 1 Manual Loads 0 Difficulty Rogue Special Mode Winter2019/RPGLIKE Game No. 60 Rogue 60 Adventurer 0 Explorer 0 Win Type - Total 0 Types 0/0/0/0/0/0/0/0/0/0 Lore% 54 Gallery% 34 Achievement% 32 Wizard Run 0 Options --------- Layout 0 ASCII 0 Keyboard 0 Movement Mouse Keybinds 0 Fullscreen 2 Font 24/Smallcaps Map View 76x50 Zoom Use 0% Tactical HUD 1 Map Filters NONE Filters NONE Steam 1 RUN: 4aeed3c8-61fa-4386-9c8a-4d3153008f9a